fUSD/lending_fUSD_20240803
["ID","MTS","AMOUNT","RATE_DAILY","PERIOD"]
[334014623,1722679863576,-500.0,0.00018356,2]
[334014624,1722679863587,-500.0,0.00018356,2]
[334014625,1722679863597,-2869.52,0.00018356,2]
[334014626,1722679863606,-962.43,0.00018356,2]
[334014627,1722679863616,-845.82,0.00018356,2]
[334014628,1722679863626,-500.0,0.00018356,2]
[334014629,1722679863636,-799.98,0.00018356,2]
[334014630,1722679863645,-500.0,0.00018356,2]
[334014631,1722679863655,-990.59,0.00018356,2]
[334014632,1722679863665,-500.0,0.00018356,2]
[334014633,1722679863675,-500.0,0.00018356,2]
[334014634,1722679863685,-722.18,0.00018356,2]
[334014635,1722679863695,-946.75,0.00018356,2]
[334014636,1722679863704,-3094.92,0.00018356,2]
[334014637,1722679863714,-1648.87,0.00018356,2]
[334014638,1722679863724,-500.0,0.00018356,2]
[334014639,1722679863733,-546.6,0.00018356,2]
[334014640,1722679863743,-649.4,0.00018356,2]
[334014641,1722679863752,-756.12,0.00018356,2]
[334014642,1722679863763,-549.28,0.00018356,2]
[334014643,1722679863772,-4776.75,0.00018356,2]
[334014644,1722679863782,-601.51610805,0.00018356,2]
[334014645,1722679863793,-1739.26,0.00018356,2]
[334014646,1722679863803,-633.04,0.00018356,2]
[334014647,1722679863812,-500.0,0.00018356,2]
[334014648,1722679863822,-894.83,0.00018356,2]
[334014649,1722679863838,-500.0,0.00018356,2]
[334014650,1722679863848,-679.21,0.00018356,2]
[334014651,1722679863858,-500.0,0.00018356,2]
[334014652,1722679863868,-5258.6,0.00018356,2]
[334014653,1722679863880,-1863.79,0.00018356,2]
[334014654,1722679863890,-1520.3,0.00018356,2]
[334014655,1722679863900,-794.69,0.00018356,2]
[334014656,1722679863910,-2610.29,0.00018356,2]
[334014657,1722679863919,-608.3,0.00018356,2]
[334014658,1722679863929,-500.0,0.00018356,2]
[334014659,1722679863939,-540.5,0.00018444,2]
[334014660,1722679863948,-451.86967886,0.00018522,2]
[334014661,1722679863958,-241.04299152,0.00018567,2]
[334014662,1722679863967,-1228.92,0.00018629,2]
[334014663,1722679863977,-500.0,0.00018629,2]
[334014664,1722679863987,-500.0,0.00018629,2]
[334014665,1722679863996,-1487.36,0.00018629,2]
[334014666,1722679864006,-586.29,0.00018629,2]
[334014667,1722679864016,-509.23,0.00018629,2]
[334014668,1722679864026,-1514.24,0.00018629,2]
[334014669,1722679864036,-547.25,0.00018629,2]
[334014670,1722679864047,-500.0,0.00018629,2]
[334014671,1722679864057,-632.81,0.00018629,2]
[334014672,1722679864067,-1002.48,0.00018629,2]
[334014673,1722679864077,-500.0,0.00018629,2]
[334014674,1722679864087,-500.0,0.00018629,2]
[334014675,1722679864098,-690.99,0.00018629,2]
[334014676,1722679864107,-1486.0,0.00018629,2]
[334014677,1722679864117,-757.77,0.00018629,2]
[334014678,1722679864127,-1053.29,0.00018629,2]
[334014679,1722679864137,-500.0,0.00018629,2]
[334014680,1722679864147,-562.51247143,0.00018629,2]
[334014681,1722679864157,-2310.93,0.00018629,2]
[334014682,1722679864167,-500.0,0.0001863,2]
[334014683,1722679864177,-500.0,0.0001863,2]
[334014684,1722679864186,-500.0,0.0001863,2]
[334014685,1722679864196,-500.0,0.0001863,2]
[334014686,1722679864206,-427.41725209,0.0001863,2]
[334014687,1722679864215,-640.44091664,0.0001863,2]
[334014688,1722679864224,-500.0,0.0001863,2]
[334014689,1722679864233,-500.0,0.0001863,2]
[334014690,1722679864243,-500.0,0.0001863,2]
[334014691,1722679864253,-500.0,0.0001863,2]
[334014692,1722679864262,-200.88826723,0.0001863,2]
[334014693,1722679864272,-500.0,0.0001863,2]
[334014694,1722679864282,-500.0,0.0001863,2]
[334014695,1722679864293,-500.0,0.0001863,2]
[334014696,1722679864302,-202.33176271,0.0001863,2]
[334014697,1722679864311,-500.0,0.0001863,2]
[334014698,1722679864321,-181.23276643,0.0001863,2]
[334014699,1722679864331,-1038.92,0.0001863,2]
[334014700,1722679864340,-500.0,0.0001863,2]
[334014701,1722679864350,-500.0,0.0001863,2]
[334014702,1722679864359,-500.0,0.0001863,2]
[334014703,1722679864369,-500.0,0.0001863,2]
[334014704,1722679864379,-500.0,0.0001863,2]
[334014705,1722679864389,-500.0,0.0001863,2]
[334014706,1722679864398,-500.0,0.0001863,2]
[334014707,1722679864408,-551.64,0.0001863,2]
[334014708,1722679864418,-500.0,0.0001863,2]
[334014709,1722679864428,-500.0,0.0001863,2]
[334014710,1722679864438,-500.0,0.0001863,2]
[334014711,1722679864449,-500.0,0.0001863,2]
[334014712,1722679864459,-1131.87,0.0001863,2]
[334014713,1722679864469,-500.0,0.0001863,2]
[334014714,1722679864479,-500.0,0.0001863,2]
[334014715,1722679864490,-500.0,0.0001863,2]
[334014716,1722679864500,-780.23,0.0001863,2]
[334014717,1722679864510,-580.49,0.0001863,2]
[334014718,1722679864520,-500.0,0.0001863,2]
[334014719,1722679864530,-500.0,0.0001863,2]
[334014720,1722679864540,-500.0,0.0001863,2]
[334014721,1722679864551,-500.0,0.0001863,2]
[334014722,1722679864560,-500.0,0.0001863,2]
[334014723,1722679864571,-500.0,0.0001863,2]
[334014724,1722679864581,-543.4258372,0.0001863,2]
[334014725,1722679864591,-402.20661066,0.0001863,2]
[334014726,1722679864602,-500.0,0.0001863,2]
[334014727,1722679864612,-500.0,0.0001863,2]
[334014728,1722679864622,-500.0,0.0001863,2]
[334014729,1722679864632,-296.94343753,0.0001863,2]
[334014730,1722679864642,-724.65,0.0001863,2]
[334014731,1722679864651,-500.0,0.0001863,2]
[334014732,1722679864661,-500.0,0.0001863,2]
[334014733,1722679864670,-500.0,0.0001863,2]
[334014734,1722679864680,-500.0,0.0001863,2]
[334014735,1722679864690,-500.0,0.0001863,2]
[334014736,1722679864700,-500.0,0.0001863,2]
[334014737,1722679864709,-224.5,0.0001863,2]
[334014738,1722679864719,-500.0,0.0001863,2]
[334014739,1722679864728,-500.0,0.0001863,2]
[334014740,1722679864738,-500.0,0.0001863,2]
[334014741,1722679864748,-500.0,0.0001863,2]
[334014742,1722679864758,-213.3965969,0.0001863,2]
[334014743,1722679864768,-447.92397274,0.0001863,2]
[334014744,1722679864778,-500.0,0.0001863,2]
[334014745,1722679864788,-500.0,0.0001863,2]
[334014746,1722679864798,-500.0,0.0001863,2]
[334014747,1722679864807,-169.62,0.0001863,2]
[334014748,1722679864818,-500.0,0.0001863,2]
[334014749,1722679864831,-500.0,0.0001863,2]
[334014750,1722679864841,-500.0,0.0001863,2]
[334014751,1722679864852,-500.0,0.0001863,2]
[334014752,1722679864861,-500.0,0.0001863,2]
[334014753,1722679864873,-500.0,0.0001863,2]
[334014754,1722679864882,-500.0,0.0001863,2]
[334014755,1722679864892,-1050.57,0.0001863,2]
[334014756,1722679864903,-863.18,0.0001863,2]
[334014757,1722679864913,-500.0,0.0001863,2]
[334014758,1722679864922,-500.0,0.0001863,2]
[334014759,1722679864932,-547.51231618,0.0001863,2]
[334014760,1722679864942,-500.0,0.0001863,2]
[334014761,1722679864952,-500.0,0.0001863,2]
[334014762,1722679864961,-500.0,0.0001863,2]
[334014763,1722679864971,-500.0,0.0001863,2]
[334014764,1722679864981,-500.0,0.0001863,2]
[334014765,1722679864992,-539.35,0.0001863,2]
[334014766,1722679865002,-500.0,0.0001863,2]
[334014767,1722679865011,-500.0,0.0001863,2]
[334014768,1722679865021,-500.0,0.0001863,2]
[334014769,1722679865031,-500.0,0.0001863,2]
[334014770,1722679865041,-500.0,0.0001863,2]
[334014771,1722679865051,-500.0,0.0001863,2]
[334014772,1722679865061,-500.0,0.0001863,2]
[334014773,1722679865070,-500.0,0.0001863,2]
[334014774,1722679865080,-500.0,0.0001863,2]
[334014775,1722679865090,-700.34,0.0001863,2]
[334014776,1722679865100,-500.0,0.0001863,2]
[334014777,1722679865110,-592.7,0.0001863,2]
[334014778,1722679865120,-332.92,0.0001863,2]
[334014779,1722679865130,-500.0,0.0001863,2]
[334014780,1722679865140,-500.0,0.0001863,2]
[334014781,1722679865149,-500.0,0.0001863,2]
[334014782,1722679865159,-542.41,0.0001863,2]
[334014783,1722679865168,-551.5,0.0001863,2]
[334014784,1722679865178,-500.0,0.0001863,2]
[334014785,1722679865187,-500.0,0.0001863,2]
[334014786,1722679865197,-2156.49,0.0001863,2]
[334014787,1722679865207,-763.4,0.0001863,2]
[334014788,1722679865219,-500.0,0.0001863,2]
[334014789,1722679865229,-500.0,0.0001863,2]
[334014790,1722679865239,-605.34,0.0001863,2]
[334014791,1722679865249,-2025.66,0.0001863,2]
[334014792,1722679865261,-533.71,0.0001863,2]
[334014793,1722679865273,-500.0,0.0001863,2]
[334014794,1722679865283,-500.0,0.0001863,2]
[334014795,1722679865342,-500.0,0.0001863,2]
[334014796,1722679865351,-985.87,0.0001863,2]
[334014797,1722679865360,-1174.52,0.0001863,2]
[334014798,1722679865370,-500.0,0.0001863,2]
[334014799,1722679865380,-500.0,0.0001863,2]
[334014800,1722679865390,-1586.69,0.0001863,2]
[334014801,1722679865399,-830.37,0.0001863,2]
[334014802,1722679865410,-500.0,0.0001863,2]
[334014803,1722679865420,-500.0,0.0001863,2]
[334014804,1722679865429,-6184.42,0.0001863,2]
[334014805,1722679865439,-715.08,0.0001863,2]
[334014806,1722679865448,-2939.45,0.0001863,2]
[334014807,1722679865458,-500.0,0.0001863,2]
[334014808,1722679865467,-2824.94,0.0001863,2]
[334014809,1722679865477,-728.72,0.0001863,2]
[334014810,1722679865486,-1733.44,0.0001863,2]
[334014811,1722679865496,-500.0,0.0001863,2]
[334014812,1722679865505,-612.74,0.0001863,2]
[334014813,1722679865514,-500.0,0.0001863,2]
[334014814,1722679865524,-1033.05,0.0001863,2]
[334014815,1722679865533,-2726.97,0.0001863,2]
[334014816,1722679865544,-500.0,0.0001863,2]
[334014817,1722679865553,-674.25,0.0001863,2]
[334014818,1722679865562,-591.7,0.0001863,2]
[334014819,1722679865571,-500.0,0.0001863,2]
[334014820,1722679865580,-500.0,0.0001863,2]
[334014821,1722679865591,-500.0,0.0001863,2]
[334014822,1722679865600,-797.47,0.0001863,2]
[334014823,1722679865609,-2712.22,0.0001863,2]
[334014824,1722679865618,-771.83,0.0001863,2]
[334014825,1722679865627,-779.95,0.0001863,2]
[334014826,1722679865636,-1649.43,0.0001863,2]
[334014827,1722679865646,-500.0,0.0001863,2]
[334014828,1722679865655,-827.87,0.0001863,2]
[334014829,1722679865664,-500.0,0.0001863,2]
[334014830,1722679865674,-500.0,0.0001863,2]
[334014831,1722679865684,-694.73,0.0001863,2]
[334014832,1722679865693,-500.0,0.0001863,2]
[334014833,1722679865702,-1327.35,0.0001863,2]
[334014834,1722679865712,-1575.91,0.0001863,2]
[334014835,1722679865722,-500.0,0.0001863,2]
[334014836,1722679865731,-550.59,0.0001863,2]
[334014837,1722679865741,-1401.71,0.0001863,2]
[334014838,1722679865750,-500.0,0.0001863,2]
[334014839,1722679865760,-813.6,0.0001863,2]
[334014840,1722679865769,-500.0,0.0001863,2]
[334014841,1722679865778,-695.59,0.0001863,2]
[334014842,1722679865788,-500.0,0.0001863,2]
[334014843,1722679865798,-551.79725183,0.0001863,2]
[334014844,1722679865808,-500.0,0.0001863,2]
[334014845,1722679865818,-1465.19,0.0001863,2]
[334014846,1722679865831,-946.14,0.0001863,2]
[334014847,1722679865841,-500.0,0.0001863,2]
[334014848,1722679865850,-500.0,0.0001863,2]
[334014849,1722679865860,-500.0,0.0001863,2]
[334014850,1722679865871,-500.0,0.0001863,2]
[334014851,1722679865880,-600.86,0.0001863,2]
[334014852,1722679865890,-358.25,0.0001863,2]
[334014853,1722679865902,-578.27,0.0001863,2]
[334014854,1722679865912,-500.0,0.0001863,2]
[334014855,1722679865921,-500.0,0.0001863,2]
[334014856,1722679865931,-500.0,0.0001863,2]
[334014857,1722679865941,-839.29,0.0001863,2]
[334014858,1722679865950,-1182.76,0.0001863,2]
[334014859,1722679865960,-979.53,0.0001863,2]
[334014860,1722679865970,-500.0,0.0001863,2]
[334014861,1722679865979,-1041.82,0.0001863,2]
[334014862,1722679865989,-500.0,0.0001863,2]
[334014863,1722679865999,-587.18,0.0001863,2]
[334014864,1722679866008,-505.01,0.0001863,2]
[334014865,1722679866018,-538.24,0.0001863,2]
[334014866,1722679866027,-548.04,0.0001863,2]
[334014867,1722679866037,-2230.61,0.0001863,2]
[334014868,1722679866051,-500.0,0.0001863,2]
[334014869,1722679866060,-500.0,0.0001863,2]
[334014870,1722679866069,-500.0,0.0001863,2]
[334014871,1722679866079,-965.02,0.0001863,2]
[334014872,1722679866089,-1406.26,0.0001863,2]
[334014873,1722679866099,-354.65186301,0.0001863,2]
[334014874,1722679866108,-932.3,0.0001863,2]
[334014875,1722679866118,-500.0,0.0001863,2]
[334014876,1722679866127,-500.0,0.0001863,2]
[334014877,1722679866137,-996.2,0.0001863,2]
[334014878,1722679866146,-1149.12,0.0001863,2]
[334014879,1722679866156,-556.75,0.0001863,2]
[334014880,1722679866166,-500.0,0.0001863,2]
[334014881,1722679866175,-500.0,0.0001863,2]
[334014882,1722679866184,-500.0,0.0001863,2]
[334014883,1722679866194,-500.0,0.0001863,2]
[334014884,1722679866204,-500.0,0.0001863,2]
[334014885,1722679866214,-682.35,0.0001863,2]
[334014886,1722679866223,-1039.26,0.0001863,2]
[334014887,1722679866233,-500.0,0.0001863,2]
[334014888,1722679866242,-375.39927526,0.0001863,2]
[334014889,1722679866251,-670.1,0.0001863,2]
[334014890,1722679866261,-1099.2,0.0001863,2]
[334014891,1722679866270,-500.0,0.0001863,2]
[334014892,1722679866280,-500.0,0.0001863,2]
[334014893,1722679866290,-1762.59,0.0001863,2]
[334014894,1722679866299,-1538.41,0.0001863,2]
[334014895,1722679866309,-508.97,0.0001863,2]
[334014896,1722679866318,-524.29,0.0001863,2]
[334014897,1722679866328,-500.0,0.0001863,2]
[334014898,1722679866337,-509.71,0.0001863,2]
[334014899,1722679866347,-500.0,0.0001863,2]
[334014900,1722679866356,-500.0,0.0001863,2]
[334014901,1722679866366,-2869.52,0.0001863,2]
[334014902,1722679866375,-962.43,0.0001863,2]
[334014903,1722679866384,-845.82,0.0001863,2]
[334014904,1722679866393,-500.0,0.0001863,2]
[334014905,1722679866402,-799.98,0.0001863,2]
[334014906,1722679866411,-500.0,0.0001863,2]
[334014907,1722679866421,-990.59,0.0001863,2]
[334014908,1722679866430,-500.0,0.0001863,2]
[334014909,1722679866440,-583.01428772,0.0001863,2]
[334014910,1722679866450,-722.18,0.0001863,2]
[334014911,1722679866459,-946.75,0.0001863,2]
[334014912,1722679866469,-3094.92,0.0001863,2]
[334014913,1722679866478,-1648.87,0.0001863,2]
[334014914,1722679866487,-633.5642708,0.0001863,2]
[334014915,1722679866496,-546.6,0.0001863,2]
[334014916,1722679866506,-649.4,0.0001863,2]
[334014917,1722679866516,-756.12,0.0001863,2]
[334014918,1722679866526,-549.28,0.0001863,2]
[334014919,1722679866536,-4776.75,0.0001863,2]
[334014920,1722679866552,-1739.26,0.0001863,2]
[334014921,1722679866562,-633.04,0.0001863,2]
[334014922,1722679866572,-500.0,0.0001863,2]
[334014923,1722679866581,-894.83,0.0001863,2]
[334014924,1722679866591,-500.0,0.0001863,2]
[334014925,1722679866601,-679.21,0.0001863,2]
[334014926,1722679866610,-500.0,0.0001863,2]
[334014927,1722679866620,-5258.6,0.0001863,2]
[334014928,1722679866630,-1863.79,0.0001863,2]
[334014929,1722679866639,-1520.3,0.0001863,2]
[334014930,1722679866649,-794.69,0.0001863,2]
[334014931,1722679866658,-2610.29,0.0001863,2]
[334014932,1722679866667,-608.3,0.0001863,2]
[334014933,1722679866677,-500.0,0.0001863,2]
[334014934,1722679866686,-1228.92,0.00018903,2]
[334014935,1722679866695,-500.0,0.00018903,2]
[334014936,1722679866705,-500.0,0.00018903,2]
[334014937,1722679866715,-1487.36,0.00018903,2]
[334014938,1722679866724,-586.29,0.00018903,2]
[334014939,1722679866733,-509.23,0.00018903,2]
[334014940,1722679866742,-1514.24,0.00018903,2]
[334014941,1722679866752,-547.25,0.00018903,2]
[334014942,1722679866762,-500.0,0.00018903,2]
[334014943,1722679866771,-632.81,0.00018903,2]
[334014944,1722679866781,-1002.48,0.00018903,2]
[334014945,1722679866792,-500.0,0.00018903,2]
[334014946,1722679866802,-500.0,0.00018903,2]
[334014947,1722679866811,-690.99,0.00018903,2]
[334014948,1722679866822,-1486.0,0.00018903,2]
[334014949,1722679866833,-757.77,0.00018903,2]
[334014950,1722679866843,-1053.29,0.00018903,2]
[334014951,1722679866853,-500.0,0.00018903,2]
[334014952,1722679866863,-2310.93,0.00018903,2]
[334014953,1722679866872,-482.4731585,0.00018904,2]
[334014954,1722679866882,-500.0,0.00018904,2]
[334014955,1722679866891,-500.0,0.00018904,2]
[334014956,1722679866902,-500.0,0.00018904,2]
[334014957,1722679866911,-500.0,0.00018904,2]
[334014958,1722679866920,-500.0,0.00018904,2]
[334014959,1722679866930,-500.0,0.00018904,2]
[334014960,1722679866939,-500.0,0.00018904,2]
[334014961,1722679866948,-500.0,0.00018904,2]
[334014962,1722679866958,-500.0,0.00018904,2]
[334014963,1722679866967,-500.0,0.00018904,2]
[334014964,1722679866976,-500.0,0.00018904,2]
[334014965,1722679866986,-1038.92,0.00018904,2]
[334014966,1722679866995,-500.0,0.00018904,2]
[334014967,1722679867004,-437.40386644,0.00018904,2]
[334014968,1722679867013,-500.0,0.00018904,2]
[334014969,1722679867022,-500.0,0.00018904,2]
[334014970,1722679867032,-500.0,0.00018904,2]
[334014971,1722679867042,-500.0,0.00018904,2]
[334014972,1722679867051,-500.0,0.00018904,2]
[334014973,1722679867060,-551.64,0.00018904,2]
[334014974,1722679867070,-348.97328439,0.00018904,2]
[334014975,1722679867079,-500.0,0.00018904,2]
[334014976,1722679867088,-500.0,0.00018904,2]
[334014977,1722679867098,-500.0,0.00018904,2]
[334014978,1722679867107,-1131.87,0.00018904,2]
[334014979,1722679867117,-500.0,0.00018904,2]
[334014980,1722679867126,-500.0,0.00018904,2]
[334014981,1722679867136,-500.0,0.00018904,2]
[334014982,1722679867145,-780.23,0.00018904,2]
[334014983,1722679867155,-580.49,0.00018904,2]
[334014984,1722679867164,-500.0,0.00018904,2]
[334014985,1722679867174,-500.0,0.00018904,2]
[334014986,1722679867183,-500.0,0.00018904,2]
[334014987,1722679867192,-500.0,0.00018904,2]
[334014988,1722679867201,-500.0,0.00018904,2]
[334014989,1722679867211,-500.0,0.00018904,2]
[334014990,1722679867221,-500.0,0.00018904,2]
[334014991,1722679867230,-597.29117026,0.00018904,2]
[334014992,1722679867240,-500.0,0.00018904,2]
[334014993,1722679867250,-724.65,0.00018904,2]
[334014994,1722679867258,-500.0,0.00018904,2]
[334014995,1722679867268,-500.0,0.00018904,2]
[334014996,1722679867278,-500.0,0.00018904,2]
[334014997,1722679867287,-500.0,0.00018904,2]
[334014998,1722679867297,-638.53320352,0.00018904,2]
[334014999,1722679867306,-500.0,0.00018904,2]
[334015000,1722679867316,-500.0,0.00018904,2]
[334015001,1722679867326,-500.0,0.00018904,2]
[334015002,1722679867335,-500.0,0.00018904,2]
[334015003,1722679867344,-500.0,0.00018904,2]
[334015004,1722679867355,-500.0,0.00018904,2]
[334015005,1722679867364,-500.0,0.00018904,2]
[334015006,1722679867373,-500.0,0.00018904,2]
[334015007,1722679867383,-169.62,0.00018904,2]
[334015008,1722679867392,-500.0,0.00018904,2]
[334015009,1722679867401,-500.0,0.00018904,2]
[334015010,1722679867412,-500.0,0.00018904,2]
[334015011,1722679867422,-500.0,0.00018904,2]
[334015012,1722679867431,-500.0,0.00018904,2]
[334015013,1722679867441,-500.0,0.00018904,2]
[334015014,1722679867451,-500.0,0.00018904,2]
[334015015,1722679867461,-1050.57,0.00018904,2]
[334015016,1722679867470,-863.18,0.00018904,2]
[334015017,1722679867480,-500.0,0.00018904,2]
[334015018,1722679867490,-500.0,0.00018904,2]
[334015019,1722679867499,-500.0,0.00018904,2]
[334015020,1722679867509,-500.0,0.00018904,2]
[334015021,1722679867518,-228.58402013,0.00018904,2]
[334015022,1722679867527,-500.0,0.00018904,2]
[334015023,1722679867538,-539.35,0.00018904,2]
[334015024,1722679867548,-500.0,0.00018904,2]
[334015025,1722679867558,-500.0,0.00018904,2]
[334015026,1722679867570,-500.0,0.00018904,2]
[334015027,1722679867579,-500.0,0.00018904,2]
[334015028,1722679867589,-540.47207494,0.00018904,2]
[334015029,1722679867599,-500.0,0.00018904,2]
[334015030,1722679867609,-331.93875128,0.00018904,2]
[334015031,1722679867618,-500.0,0.00018904,2]
[334015032,1722679867628,-500.0,0.00018904,2]
[334015033,1722679867638,-500.0,0.00018904,2]
[334015034,1722679867647,-700.34,0.00018904,2]
[334015035,1722679867657,-500.0,0.00018904,2]
[334015036,1722679867666,-592.7,0.00018904,2]
[334015037,1722679867676,-500.0,0.00018904,2]
[334015038,1722679867686,-500.0,0.00018904,2]
[334015039,1722679867696,-500.0,0.00018904,2]
[334015040,1722679867705,-542.41,0.00018904,2]
[334015041,1722679867715,-551.5,0.00018904,2]
[334015042,1722679867727,-500.0,0.00018904,2]
[334015043,1722679867737,-500.0,0.00018904,2]
[334015044,1722679867747,-2156.49,0.00018904,2]
[334015045,1722679867756,-763.4,0.00018904,2]
[334015046,1722679867766,-500.0,0.00018904,2]
[334015047,1722679867775,-605.34,0.00018904,2]
[334015048,1722679867785,-500.0,0.00018904,2]
[334015049,1722679867796,-2025.66,0.00018904,2]
[334015050,1722679867814,-533.71,0.00018904,2]
[334015051,1722679867827,-500.0,0.00018904,2]
[334015052,1722679867838,-383.90945882,0.00018904,2]
[334015053,1722679867847,-500.0,0.00018904,2]
[334015054,1722679867857,-985.87,0.00018904,2]
[334015055,1722679867867,-1174.52,0.00018904,2]
[334015056,1722679867877,-500.0,0.00018904,2]
[334015057,1722679867886,-500.0,0.00018904,2]
[334015058,1722679867896,-1586.69,0.00018904,2]
[334015059,1722679867907,-830.37,0.00018904,2]
[334015060,1722679867918,-500.0,0.00018904,2]
[334015061,1722679867927,-500.0,0.00018904,2]
[334015062,1722679867937,-6184.42,0.00018904,2]
[334015063,1722679867946,-715.08,0.00018904,2]
[334015064,1722679867956,-2939.45,0.00018904,2]
[334015065,1722679867966,-257.48101738,0.00018904,2]
[334015066,1722679867976,-2824.94,0.00018904,2]
[334015067,1722679867986,-728.72,0.00018904,2]
[334015068,1722679867995,-1733.44,0.00018904,2]
[334015069,1722679868005,-500.0,0.00018904,2]
[334015070,1722679868015,-612.74,0.00018904,2]
[334015071,1722679868024,-500.0,0.00018904,2]
[334015072,1722679868033,-1033.05,0.00018904,2]
[334015073,1722679868043,-2726.97,0.00018904,2]
[334015074,1722679868053,-500.0,0.00018904,2]
[334015075,1722679868062,-674.25,0.00018904,2]
[334015076,1722679868071,-591.7,0.00018904,2]
[334015077,1722679868081,-500.0,0.00018904,2]
[334015078,1722679868090,-500.0,0.00018904,2]
[334015079,1722679868100,-500.0,0.00018904,2]
[334015080,1722679868110,-797.47,0.00018904,2]
[334015081,1722679868119,-2712.22,0.00018904,2]
[334015082,1722679868129,-771.83,0.00018904,2]
[334015083,1722679868138,-779.95,0.00018904,2]
[334015084,1722679868147,-1649.43,0.00018904,2]
[334015085,1722679868157,-500.0,0.00018904,2]
[334015086,1722679868166,-827.87,0.00018904,2]
[334015087,1722679868177,-500.0,0.00018904,2]
[334015088,1722679868186,-500.0,0.00018904,2]
[334015089,1722679868196,-694.73,0.00018904,2]
[334015090,1722679868206,-500.0,0.00018904,2]
[334015091,1722679868215,-1327.35,0.00018904,2]
[334015092,1722679868226,-1575.91,0.00018904,2]
[334015093,1722679868235,-500.0,0.00018904,2]
[334015094,1722679868244,-550.59,0.00018904,2]
[334015095,1722679868254,-1401.71,0.00018904,2]
[334015096,1722679868263,-500.0,0.00018904,2]
[334015097,1722679868272,-813.6,0.00018904,2]
[334015098,1722679868281,-500.0,0.00018904,2]
[334015099,1722679868291,-695.59,0.00018904,2]
[334015100,1722679868301,-500.0,0.00018904,2]
[334015101,1722679868310,-500.0,0.00018904,2]
[334015102,1722679868320,-1465.19,0.00018904,2]
[334015103,1722679868329,-946.14,0.00018904,2]
[334015104,1722679868338,-500.0,0.00018904,2]
[334015105,1722679868347,-500.0,0.00018904,2]
[334015106,1722679868356,-500.0,0.00018904,2]
[334015107,1722679868366,-500.0,0.00018904,2]
[334015108,1722679868375,-600.86,0.00018904,2]
[334015109,1722679868385,-578.27,0.00018904,2]
[334015110,1722679868394,-500.0,0.00018904,2]
[334015111,1722679868404,-500.0,0.00018904,2]
[334015112,1722679868414,-500.0,0.00018904,2]
[334015113,1722679868424,-839.29,0.00018904,2]
[334015114,1722679868434,-1182.76,0.00018904,2]
[334015115,1722679868444,-979.53,0.00018904,2]
[334015116,1722679868454,-500.0,0.00018904,2]
[334015117,1722679868464,-1041.82,0.00018904,2]
[334015118,1722679868473,-500.0,0.00018904,2]
[334015119,1722679868482,-587.18,0.00018904,2]
[334015120,1722679868491,-505.01,0.00018904,2]
[334015121,1722679868501,-538.24,0.00018904,2]
[334015122,1722679868510,-548.04,0.00018904,2]